fUST/lending_fUST_20250704
["ID","MTS","AMOUNT","RATE_DAILY","PERIOD"]
[369584399,1751631048747,-460.0,0.00016438,2]
[369584400,1751631048756,-1390.26,0.00016438,2]
[369584401,1751631048765,-460.0,0.00016438,2]
[369584402,1751631048774,-460.0,0.00016438,2]
[369584403,1751631048783,-460.0,0.00016438,2]
[369584404,1751631048792,-460.0,0.00016438,2]
[369584405,1751631048801,-460.0,0.00016438,2]
[369584406,1751631048810,-460.0,0.00016438,2]
[369584407,1751631048820,-460.0,0.00016438,2]
[369584408,1751631048829,-460.0,0.00016438,2]
[369584409,1751631048839,-607.34,0.00016438,2]
[369584410,1751631048848,-460.0,0.00016438,2]
[369584411,1751631048858,-460.0,0.00016438,2]
[369584412,1751631048868,-460.0,0.00016438,2]
[369584413,1751631048877,-460.0,0.00016438,2]
[369584414,1751631048887,-2758.59,0.00016438,2]
[369584415,1751631048896,-460.0,0.00016438,2]
[369584416,1751631048905,-460.0,0.00016438,2]
[369584417,1751631048914,-460.0,0.00016438,2]
[369584418,1751631048923,-460.0,0.00016438,2]
[369584419,1751631048936,-460.0,0.00016438,2]
[369584420,1751631048945,-460.0,0.00016438,2]
[369584421,1751631048955,-468.77645945,0.00016438,2]
[369584422,1751631048963,-460.0,0.00016438,2]
[369584423,1751631048973,-860.55,0.00016438,2]
[369584424,1751631048981,-3001.59,0.00016438,2]
[369584425,1751631048991,-510.62960092,0.00016438,2]
[369584426,1751631049000,-463.37519806,0.00016438,2]
[369584427,1751631049009,-837.1,0.00016438,2]
[369584428,1751631049018,-464.60837402,0.00016438,2]
[369584429,1751631049027,-3011.67,0.00016438,2]
[369584430,1751631049036,-460.0,0.00016438,2]
[369584431,1751631049045,-460.0,0.00016438,2]
[369584432,1751631049057,-460.0,0.00016438,2]
[369584433,1751631049066,-641.95,0.00016438,2]
[369584434,1751631049075,-460.0,0.00016438,2]
[369584435,1751631049084,-460.0,0.00016438,2]
[369584436,1751631049094,-659.24,0.00016438,2]
[369584437,1751631049103,-460.0,0.00016438,2]
[369584438,1751631049112,-460.0,0.00016438,2]
[369584439,1751631049121,-1188.57,0.00016438,2]
[369584440,1751631049130,-1005.79,0.00016438,2]
[369584441,1751631049139,-460.0,0.00016438,2]
[369584442,1751631049148,-460.0,0.00016438,2]
[369584443,1751631049156,-460.0,0.00016438,2]
[369584444,1751631049166,-1197.15,0.00016438,2]
[369584445,1751631049175,-460.0,0.00016438,2]
[369584446,1751631049185,-460.0,0.00016438,2]
[369584447,1751631049194,-461.57378708,0.00016438,2]
[369584448,1751631049203,-460.0,0.00016438,2]
[369584449,1751631049212,-658.83,0.00016438,2]
[369584450,1751631049222,-1381.27,0.00016438,2]
[369584451,1751631049231,-460.0,0.00016438,2]
[369584452,1751631049240,-460.0,0.00016438,2]
[369584453,1751631049250,-460.0,0.00016438,2]
[369584454,1751631049259,-460.0,0.00016438,2]
[369584455,1751631049269,-460.0,0.00016438,2]
[369584456,1751631049278,-460.0,0.00016438,2]
[369584457,1751631049288,-460.0,0.00016438,2]
[369584458,1751631049297,-793.95,0.00016438,2]
[369584459,1751631049306,-460.0,0.00016438,2]
[369584460,1751631049315,-762.11,0.00016438,2]
[369584461,1751631049325,-460.0,0.00016438,2]
[369584462,1751631049334,-460.0,0.00016438,2]
[369584463,1751631049343,-460.0,0.00016438,2]
[369584464,1751631049352,-460.0,0.00016438,2]
[369584465,1751631049361,-723.64,0.00016438,2]
[369584466,1751631049371,-460.0,0.00016438,2]
[369584467,1751631049380,-460.0,0.00016438,2]
[369584468,1751631049390,-460.0,0.00016438,2]
[369584469,1751631049399,-4139.8,0.00016438,2]
[369584470,1751631049409,-1530.26,0.00016438,2]
[369584471,1751631049418,-602.39871282,0.00016438,2]
[369584472,1751631049427,-460.0,0.00016438,2]
[369584473,1751631049437,-460.0,0.00016438,2]
[369584474,1751631049446,-460.0,0.00016438,2]
[369584475,1751631049455,-460.0,0.00016438,2]
[369584476,1751631049464,-460.0,0.00016438,2]
[369584477,1751631049474,-2708.39,0.00016438,2]
[369584478,1751631049483,-624.23,0.00016438,2]
[369584479,1751631049492,-460.0,0.00016438,2]
[369584480,1751631049502,-460.0,0.00016438,2]
[369584481,1751631049511,-460.0,0.00016438,2]
[369584482,1751631049520,-460.0,0.00016438,2]
[369584483,1751631049530,-4369.14,0.00016438,2]
[369584484,1751631049539,-460.0,0.00016438,2]
[369584485,1751631049548,-3010.23,0.00016438,2]
[369584486,1751631049557,-460.0,0.00016438,2]
[369584487,1751631049567,-460.0,0.00016438,2]
[369584488,1751631049576,-460.0,0.00016438,2]
[369584489,1751631049585,-460.0,0.00016438,2]
[369584490,1751631049594,-460.0,0.00016438,2]
[369584491,1751631049724,-430.82614413,0.00016438,2]
[369584492,1751631049734,-620.62,0.00016438,2]
[369584493,1751631049744,-226.00683619,0.00016438,2]
[369584494,1751631049753,-460.0,0.00016438,2]
[369584495,1751631049763,-460.0,0.00016438,2]
[369584496,1751631049772,-460.0,0.00016438,2]
[369584497,1751631049782,-460.0,0.00016438,2]
[369584498,1751631049791,-460.0,0.00016438,2]
[369584499,1751631049801,-932.85,0.00016438,2]
[369584500,1751631049810,-700.16,0.00016438,2]
[369584501,1751631049819,-460.0,0.00016438,2]
[369584502,1751631049830,-460.0,0.00016438,2]
[369584503,1751631049839,-460.0,0.00016438,2]
[369584504,1751631049848,-2080.08,0.00016438,2]
[369584505,1751631049858,-469.63483697,0.00016438,2]
[369584506,1751631049868,-460.0,0.00016438,2]
[369584507,1751631049878,-1238.84,0.00016438,2]
[369584508,1751631049887,-4045.12,0.00016438,2]
[369584509,1751631049897,-870.27,0.00016438,2]
[369584510,1751631049906,-460.0,0.00016438,2]
[369584511,1751631049915,-500.0,0.00016438,2]
[369584512,1751631049925,-460.0,0.00016438,2]
[369584513,1751631049936,-460.0,0.00016438,2]
[369584514,1751631049950,-186.44394385,0.00016438,2]
[369584515,1751631049959,-467.86,0.00016438,2]
[369584516,1751631049970,-460.0,0.00016438,2]
[369584517,1751631049980,-460.0,0.00016438,2]
[369584518,1751631049989,-460.0,0.00016438,2]
[369584519,1751631049999,-460.0,0.00016438,2]
[369584520,1751631050008,-4049.96,0.00016438,2]
[369584521,1751631050018,-460.0,0.00016438,2]
[369584522,1751631050028,-461.30638308,0.00016438,2]
[369584523,1751631050038,-460.0,0.00016438,2]
[369584524,1751631050049,-460.0,0.00016438,2]
[369584525,1751631050060,-887.92,0.00016438,2]
[369584526,1751631050070,-1183.52,0.00016438,2]
[369584527,1751631050082,-460.0,0.00016438,2]
[369584528,1751631050093,-611.95,0.00016438,2]
[369584529,1751631050103,-460.0,0.00016438,2]
[369584530,1751631050114,-460.0,0.00016438,2]
[369584531,1751631050123,-460.0,0.00016438,2]
[369584532,1751631050132,-500.0,0.00016438,2]
[369584533,1751631050141,-460.0,0.00016438,2]
[369584534,1751631050151,-460.0,0.00016438,2]
[369584535,1751631050160,-460.0,0.00016438,2]
[369584536,1751631050169,-460.0,0.00016438,2]
[369584537,1751631050178,-460.0,0.00016438,2]
[369584538,1751631050188,-460.0,0.00016438,2]
[369584539,1751631050197,-460.0,0.00016438,2]
[369584540,1751631050206,-460.0,0.00016438,2]
[369584541,1751631050215,-151.0,0.00016438,2]
[369584542,1751631050224,-460.0,0.00016438,2]
[369584543,1751631050234,-151.0,0.00016438,2]
[369584544,1751631050243,-151.0,0.00016438,2]
[369584545,1751631050253,-717.47,0.00016438,2]
[369584546,1751631050263,-460.0,0.00016438,2]
[369584547,1751631050272,-1731.39,0.00016438,2]
[369584548,1751631050283,-460.0,0.00016438,2]
[369584549,1751631050294,-460.0,0.00016438,2]
[369584550,1751631050304,-460.0,0.00016438,2]
[369584551,1751631050315,-150.48107155,0.00016438,2]
[369584552,1751631050326,-1783.93,0.00016438,2]
[369584553,1751631050335,-460.0,0.00016438,2]
[369584554,1751631050345,-160.0,0.00016461,2]
[369584555,1751631050355,-847.91215827,0.00016461,2]
[369584556,1751631050365,-12578.03337979,0.00016461,2]
[369584557,1751631050374,-837.48520791,0.00016461,2]
[369584558,1751631050383,-160.0,0.00016461,2]
[369584559,1751631050394,-215.11129906,0.00016461,2]
[369584560,1751631050403,-213.97741257,0.00016461,2]
[369584561,1751631050412,-230.40116161,0.00016461,2]
[369584562,1751631050422,-160.0,0.00016461,2]
[369584563,1751631050432,-151.0,0.00016493,2]
[369584564,1751631050442,-151.0550023,0.00016493,2]
[369584565,1751631050452,-151.03776761,0.00016493,2]
[369584566,1751631050462,-151.00208844,0.00016493,2]
[369584567,1751631050472,-500.0,0.00016493,2]
[369584568,1751631050482,-506.73896345,0.00016498,2]
[369584569,1751631050492,-199.65485098,0.0001652,2]
[369584570,1751631050501,-500.0,0.0001652,2]
[369584571,1751631050512,-151.0,0.0001654,2]
[369584572,1751631050523,-151.0,0.0001654,2]
[369584573,1751631050533,-762.77899322,0.00016544,2]
[369584574,1751631050544,-500.0,0.00016548,2]
[369584575,1751631050554,-260.043421,0.00016557,2]
[369584576,1751631050563,-260.043428,0.00016557,2]
[369584577,1751631050574,-500.0,0.00016575,2]
[369584578,1751631050583,-500.0,0.00016578,2]
[369584579,1751631050594,-31146.66294815,0.000166,2]
[369584580,1751631050604,-151.0,0.000166,2]
[369584581,1751631050615,-151.0,0.000166,2]
[369584582,1751631050629,-500.0,0.00016603,2]
[369584583,1751631050640,-150.0,0.0001663,2]
[369584584,1751631050649,-500.0,0.0001663,2]
[369584585,1751631050659,-168.0,0.00016635,2]
[369584586,1751631050669,-434.430811,0.00016646,2]
[369584587,1751631050679,-420.0,0.00016653,2]
[369584588,1751631050688,-500.0,0.00016657,2]
[369584589,1751631050697,-168.0,0.00016674,2]
[369584590,1751631050707,-213.883,0.00016684,2]
[369584591,1751631050716,-248.989,0.00016684,2]
[369584592,1751631050725,-249.539,0.00016684,2]
[369584593,1751631050735,-967.0,0.00016684,2]
[369584594,1751631050745,-2152.0,0.00016684,2]
[369584595,1751631050755,-759.031,0.00016684,2]
[369584596,1751631050765,-500.0,0.00016685,2]
[369584597,1751631050774,-500.0,0.00016711,2]
[369584598,1751631050784,-500.0,0.00016711,2]
[369584599,1751631050794,-500.0,0.00016711,2]
[369584600,1751631050803,-500.0,0.00016711,2]
[369584601,1751631050813,-500.0,0.00016711,2]
[369584602,1751631050823,-500.0,0.00016711,2]
[369584603,1751631050832,-210.33223515,0.00016712,2]
[369584604,1751631050841,-1290.49112338,0.00016712,2]
[369584605,1751631050851,-460.0,0.00016712,2]
[369584606,1751631050860,-500.0,0.00016712,2]
[369584607,1751631050869,-460.0,0.00016712,2]
[369584608,1751631050879,-460.0,0.00016712,2]
[369584609,1751631050888,-460.0,0.00016712,2]
[369584610,1751631050897,-460.0,0.00016712,2]
[369584611,1751631050907,-460.0,0.00016712,2]
[369584612,1751631050916,-460.0,0.00016712,2]
[369584613,1751631050925,-460.0,0.00016712,2]
[369584614,1751631050934,-460.0,0.00016712,2]
[369584615,1751631050944,-391.68853565,0.00016712,2]
[369584616,1751631051095,-75.55962437,0.00016712,2]
[369584617,1751631051105,-578.33,0.00016712,2]
[369584618,1751631051114,-460.0,0.00016712,2]
[369584619,1751631051124,-449.21444263,0.00016712,2]
[369584622,1751631122108,646.102586,0.00013699,2]
[369584626,1751631898946,200.0,0.00024658,60]
[369584637,1751632122711,578.90378812,0.000149,2]
[369584638,1751632122882,1000.0,0.0001,2]
[369584640,1751632126554,9094.07003722,0.00015,2]
[369584803,1751632238321,-179.78425889,0.00015017,2]
[369584805,1751632238331,-444.0,0.00015254,2]
[369584807,1751632238341,-300.0,0.00015365,2]
[369584809,1751632238350,-341.0,0.00015365,2]
[369584811,1751632238360,-24900.0,0.00015366,2]
[369584813,1751632238369,-444.0,0.00015481,2]
[369584815,1751632238379,-444.0,0.00015507,2]
[369584817,1751632238387,-168.0,0.00015641,2]
[369584819,1751632238397,-445.0,0.00015906,2]
[369584821,1751632238407,-445.0,0.0001613,2]
[369584823,1751632238416,-380.05422264,0.00016328,2]
[369584825,1751632238425,-1456.72226628,0.00016338,2]
[369584827,1751632238435,-300.58562724,0.00016338,2]
[369584829,1751632238444,-207.4,0.00016428,2]
[369584831,1751632238453,-151.0,0.00016428,2]
[369584833,1751632238463,-151.0,0.00016428,2]
[369584835,1751632238472,-151.0,0.00016428,2]
[369584837,1751632238483,-151.0,0.00016428,2]
[369584839,1751632238493,-151.0,0.00016428,2]
[369584841,1751632238502,-151.0,0.00016428,2]
[369584843,1751632238511,-151.0,0.00016428,2]
[369584845,1751632238520,-151.0,0.00016428,2]
[369584847,1751632238529,-151.0,0.00016428,2]
[369584849,1751632238538,-151.0,0.00016428,2]
[369584851,1751632238547,-151.0,0.00016428,2]
[369584853,1751632238557,-5006.04610524,0.00016428,2]
[369584855,1751632238566,-500.0,0.00016437,2]
[369584857,1751632238575,-500.0,0.00016437,2]
[369584859,1751632238585,-500.0,0.00016437,2]
[369584861,1751632238594,-500.0,0.00016437,2]
[369584863,1751632238603,-500.0,0.00016437,2]
[369584865,1751632238612,-500.0,0.00016437,2]
[369584867,1751632238621,-500.0,0.00016437,2]
[369584869,1751632238631,-500.0,0.00016437,2]
[369584871,1751632238640,-500.0,0.00016437,2]
[369584873,1751632238649,-500.0,0.00016437,2]
[369584875,1751632238659,-500.0,0.00016437,2]
[369584877,1751632238668,-500.0,0.00016437,2]
[369584879,1751632238678,-173.14730036,0.00016437,2]
[369584881,1751632238687,-460.0,0.00016438,2]
[369584883,1751632238696,-460.0,0.00016438,2]
[369584885,1751632238706,-323.43924429,0.00016438,2]
[369584887,1751632238718,-136.56075571,0.00016438,2]
[369584889,1751632238727,-460.0,0.00016438,2]
[369584891,1751632238737,-460.0,0.00016438,2]
[369584893,1751632238746,-460.74958613,0.00016438,2]
[369584895,1751632238755,-460.0,0.00016438,2]
[369584897,1751632238765,-460.0,0.00016438,2]
[369584899,1751632238774,-500.0,0.00016438,2]
[369584901,1751632238784,-151.0,0.00016438,2]
[369584903,1751632238794,-298.818285,0.00016438,2]
[369584905,1751632238803,-460.0,0.00016438,2]
[369584907,1751632238813,-460.38714944,0.00016438,2]
[369584909,1751632238822,-460.0,0.00016438,2]
[369584911,1751632238831,-460.0,0.00016438,2]
[369584913,1751632238840,-460.0,0.00016438,2]
[369584915,1751632238850,-500.0,0.00016438,2]
[369584917,1751632238859,-581.62242239,0.00016438,2]
[369584919,1751632238869,-500.0,0.00016438,2]
[369584921,1751632238879,-460.0,0.00016438,2]
[369584923,1751632238888,-177.0345827,0.00016438,2]
[369584925,1751632238897,-460.0,0.00016438,2]
[369584926,1751632238906,-569.75727637,0.00016438,2]
[369584927,1751632238915,-460.0,0.00016438,2]
[369584928,1751632238924,-460.0,0.00016438,2]
[369584929,1751632238934,-460.0,0.00016438,2]
[369584930,1751632238943,-460.0,0.00016438,2]
[369584931,1751632238953,-460.0,0.00016438,2]
[369584932,1751632238962,-593.64795834,0.00016438,2]
[369584933,1751632238971,-460.0,0.00016438,2]
[369584934,1751632238981,-460.0,0.00016438,2]
[369584935,1751632238991,-460.0,0.00016438,2]
[369584936,1751632239001,-460.0,0.00016438,2]
[369584937,1751632239011,-460.0,0.00016438,2]
[369584938,1751632239020,-460.0,0.00016438,2]
[369584939,1751632239030,-174.75220888,0.00016438,2]
[369584940,1751632239040,-460.0,0.00016438,2]
[369584941,1751632239051,-460.0,0.00016438,2]
[369584942,1751632239060,-460.0,0.00016438,2]
[369584943,1751632239069,-460.0,0.00016438,2]
[369584944,1751632239079,-460.0,0.00016438,2]
[369584945,1751632239088,-460.0,0.00016438,2]
[369584946,1751632239097,-460.0,0.00016438,2]
[369584947,1751632239107,-460.0,0.00016438,2]
[369584948,1751632239116,-460.0,0.00016438,2]
[369584949,1751632239126,-460.0,0.00016438,2]
[369584950,1751632239135,-460.0,0.00016438,2]
[369584951,1751632239145,-645.14,0.00016438,2]
[369584952,1751632239154,-460.0,0.00016438,2]
[369584953,1751632239164,-460.0,0.00016438,2]
[369584954,1751632239174,-460.0,0.00016438,2]
[369584955,1751632239184,-460.0,0.00016438,2]
[369584956,1751632239196,-460.0,0.00016438,2]
[369584959,1751632239207,-151.0,0.00016438,2]
[369584960,1751632239217,-460.0,0.00016438,2]
[369584962,1751632239227,-922.62,0.00016438,2]
[369584964,1751632239238,-460.0,0.00016438,2]
[369584966,1751632239248,-460.0,0.00016438,2]
[369584968,1751632239259,-460.0,0.00016438,2]
[369584970,1751632239270,-460.0,0.00016438,2]
[369584972,1751632239279,-460.0,0.00016438,2]
[369584974,1751632239290,-698.72,0.00016438,2]
[369584976,1751632239299,-460.0,0.00016438,2]
[369584978,1751632239310,-460.0,0.00016438,2]
[369584980,1751632239319,-4.24902015,0.00016438,2]
[369584983,1751632239333,-455.75097985,0.00016438,2]
[369584985,1751632239342,-794.9,0.00016438,2]
[369584987,1751632239352,-188.23429,0.00016438,2]
[369584989,1751632239362,-608.01023409,0.00016438,2]
[369584991,1751632239372,-460.0,0.00016438,2]
[369584993,1751632239382,-188.23429,0.00016438,2]
[369584995,1751632239392,-460.0,0.00016438,2]
[369584997,1751632239401,-267.86096401,0.00016438,2]
[369584999,1751632239412,-192.13903599,0.00016438,2]
[369585001,1751632239422,-336.75805519,0.00016438,2]
[369585003,1751632239433,-185.64398289,0.00016438,2]
[369585005,1751632239443,-460.0,0.00016438,2]
[369585007,1751632239452,-460.0,0.00016438,2]
[369585023,1751632239591,-460.0,0.00016438,2]
[369585025,1751632239602,-266.95437828,0.00016438,2]
[369585027,1751632239615,-193.04562172,0.00016438,2]
[369585029,1751632239624,-460.0,0.00016438,2]
[369585031,1751632239634,-460.0,0.00016438,2]
[369585033,1751632239643,-460.0,0.00016438,2]
[369585035,1751632239652,-783.35,0.00016438,2]
[369585037,1751632239662,-460.0,0.00016438,2]
[369585039,1751632239672,-389.13731842,0.00016438,2]
[369585041,1751632239681,-344.53419434,0.00016438,2]
[369585043,1751632239690,-460.0,0.00016438,2]
[369585045,1751632239699,-460.0,0.00016438,2]
[369585047,1751632239708,-277.43070146,0.00016438,2]
[369585049,1751632239721,-182.56929854,0.00016438,2]
[369585051,1751632239731,-291.74175227,0.00016438,2]
[369585366,1751632243506,-170.51958278,0.00016438,2]
[369585367,1751632243516,-460.0,0.00016438,2]
[369585368,1751632243526,-460.0,0.00016438,2]
[369585369,1751632243535,-151.0,0.00016438,2]
[369585371,1751632243545,-460.0,0.00016438,2]
[369585372,1751632243555,-460.0,0.00016438,2]
[369585373,1751632243564,-151.0,0.00016438,2]
[369585374,1751632243573,-229.75509226,0.00016438,2]
[369585375,1751632243583,-284.50150884,0.00016438,2]
[369585376,1751632243592,-151.0,0.00016438,2]
[369585378,1751632243602,-460.0,0.00016438,2]
[369585379,1751632243611,-460.0,0.00016438,2]
[369585381,1751632243620,-460.0,0.00016438,2]
[369585383,1751632243629,-460.0,0.00016438,2]
[369585385,1751632243638,-460.0,0.00016438,2]
[369585387,1751632243648,-460.0,0.00016438,2]
[369585389,1751632243657,-500.0,0.00016438,2]
[369585391,1751632243667,-500.0,0.00016438,2]
[369585393,1751632243676,-500.0,0.00016438,2]
[369585395,1751632243685,-500.0,0.00016438,2]
[369585397,1751632243695,-162.5,0.00016438,2]
[369585399,1751632243704,-460.0,0.00016438,2]
[369585401,1751632243713,-460.0,0.00016438,2]
[369585403,1751632243723,-460.0,0.00016438,2]
[369585405,1751632243733,-460.0,0.00016438,2]
[369585407,1751632243743,-460.0,0.00016438,2]
[369585409,1751632243752,-460.0,0.00016438,2]
[369585411,1751632243762,-460.0,0.00016438,2]
[369585413,1751632243771,-265.86958154,0.00016438,2]
[369585415,1751632243783,-194.13041846,0.00016438,2]
[369585417,1751632243792,-460.0,0.00016438,2]
[369585419,1751632243802,-500.0,0.00016438,2]
[369585421,1751632243811,-460.0,0.00016438,2]
[369585423,1751632243821,-954.17,0.00016438,2]
[369585425,1751632243830,-460.0,0.00016438,2]
[369585427,1751632243840,-460.0,0.00016438,2]
[369585429,1751632243849,-762.92,0.00016438,2]
[369585431,1751632243859,-397.55980209,0.00016438,2]
[369585433,1751632243868,-151.0,0.00016438,2]
[369585435,1751632243878,-460.0,0.00016438,2]
[369585437,1751632243887,-460.0,0.00016438,2]
[369585439,1751632243897,-460.0,0.00016438,2]
[369585441,1751632243906,-460.0,0.00016438,2]
[369585443,1751632243916,-460.0,0.00016438,2]
[369585445,1751632243925,-460.0,0.00016438,2]
[369585447,1751632243934,-500.0,0.00016438,2]
[369585449,1751632243943,-500.0,0.00016438,2]
[369585451,1751632243952,-500.0,0.00016438,2]
[369585453,1751632243963,-516.9775803,0.00016438,2]
[369585455,1751632243972,-979.12,0.00016438,2]
[369585457,1751632243981,-4685.14,0.00016438,2]
[369585459,1751632243990,-151.0,0.00016438,2]
[369585461,1751632243999,-460.0,0.00016438,2]
[369585463,1751632244009,-539.68,0.00016438,2]
[369585465,1751632244018,-460.0,0.00016438,2]
[369585467,1751632244027,-399.75849675,0.00016438,2]
[369585469,1751632244037,-460.0,0.00016438,2]
[369585471,1751632244047,-151.0,0.00016438,2]
[369585473,1751632244056,-1802.25,0.00016438,2]
[369585475,1751632244065,-460.0,0.00016438,2]
[369585476,1751632244075,-1350.61,0.00016438,2]
[369585478,1751632244084,-1573.21,0.00016438,2]
[369585481,1751632244094,-2020.04,0.00016438,2]
[369585482,1751632244103,-510.75406677,0.00016438,2]
[369585485,1751632244114,-1379.15,0.00016438,2]
[369585486,1751632244123,-460.0,0.00016438,2]
[369585488,1751632244133,-460.0,0.00016438,2]
[369585490,1751632244142,-460.0,0.00016438,2]
[369585492,1751632244153,-3417.66,0.00016438,2]
[369585494,1751632244162,-1833.8,0.00016438,2]
[369585496,1751632244172,-554.94,0.00016438,2]
[369585498,1751632244181,-460.0,0.00016438,2]
[369585500,1751632244193,-704.74,0.00016438,2]
[369585502,1751632244204,-460.0,0.00016438,2]
[369585504,1751632244213,-460.0,0.00016438,2]
[369585506,1751632244223,-460.0,0.00016438,2]
[369585508,1751632244234,-1085.69,0.00016438,2]
[369585510,1751632244243,-151.0,0.00016438,2]
[369585512,1751632244254,-3286.24,0.00016438,2]
[369585514,1751632244265,-460.0,0.00016438,2]
[369585516,1751632244277,-384.74975239,0.00016438,2]
[369585518,1751632244286,-809.24,0.00016438,2]
[369585520,1751632244296,-159.452656,0.00016438,2]
[369585522,1751632244305,-803.79,0.00016438,2]
[369585524,1751632244315,-331.82102709,0.00016438,2]
[369585526,1751632244324,-460.0,0.00016438,2]
[369585528,1751632244339,-572.47,0.00016438,2]
[369585531,1751632244353,-845.36,0.00016438,2]
[369585534,1751632244368,-460.0,0.00016438,2]
[369585536,1751632244379,-1439.73,0.00016438,2]
[369585538,1751632244392,-151.0,0.00016438,2]
[369585540,1751632244405,-460.0,0.00016438,2]
[369585543,1751632244419,-460.0,0.00016438,2]
[369585545,1751632244432,-460.0,0.00016438,2]
[369585548,1751632244445,-460.0,0.00016438,2]
[369585550,1751632244457,-917.22,0.00016438,2]
[369585552,1751632244471,-460.0,0.00016438,2]
[369585555,1751632244485,-151.0,0.00016438,2]
[369585557,1751632244497,-3338.23,0.00016438,2]
[369585559,1751632244510,-460.0,0.00016438,2]
[369585561,1751632244522,-460.0,0.00016438,2]
[369585564,1751632244534,-173.86964263,0.00016438,2]
[369585566,1751632244547,-460.0,0.00016438,2]
[369585569,1751632244561,-1561.43,0.00016438,2]
[369585571,1751632244573,-563.37,0.00016438,2]
[369585573,1751632244584,-460.0,0.00016438,2]
[369585575,1751632244595,-460.0,0.00016438,2]
[369585577,1751632244607,-460.0,0.00016438,2]
[369585580,1751632244621,-460.0,0.00016438,2]
[369585582,1751632244634,-460.0,0.00016438,2]
[369585584,1751632244647,-460.0,0.00016438,2]
[369585587,1751632244661,-730.45,0.00016438,2]
[369585589,1751632244676,-460.0,0.00016438,2]
[369585592,1751632244689,-4363.72,0.00016438,2]
[369585594,1751632244704,-1514.73,0.00016438,2]
[369585596,1751632244714,-460.96,0.00016438,2]
[369585598,1751632244725,-956.36,0.00016438,2]
[369585600,1751632244737,-3095.02,0.00016438,2]
[369585603,1751632244750,-713.22,0.00016438,2]
[369585605,1751632244764,-460.0,0.00016438,2]
[369585608,1751632244778,-746.38,0.00016438,2]
[369585610,1751632244789,-460.0,0.00016438,2]
[369585612,1751632244800,-460.0,0.00016438,2]
[369585614,1751632244812,-460.0,0.00016438,2]
[369585617,1751632244825,-200.0,0.00016438,2]
[369585619,1751632244836,-475.63543935,0.00016438,2]
[369585621,1751632244846,-701.45,0.00016438,2]
[369585623,1751632244858,-460.0,0.00016438,2]
[369585625,1751632244870,-500.00000001,0.00016438,2]
[369585627,1751632244882,-758.95,0.00016438,2]
[369585630,1751632244895,-460.0,0.00016438,2]
[369585632,1751632244907,-460.0,0.00016438,2]
[369585634,1751632244919,-460.0,0.00016438,2]
[369585636,1751632244930,-460.0,0.00016438,2]
[369585638,1751632244942,-709.76,0.00016438,2]
[369585641,1751632244954,-460.0,0.00016438,2]
[369585643,1751632244965,-1329.25,0.00016438,2]
[369585645,1751632244976,-2994.18,0.00016438,2]
[369585647,1751632244988,-1029.83,0.00016438,2]
[369585649,1751632244999,-460.0,0.00016438,2]
[369585651,1751632245011,-460.0,0.00016438,2]